[Event "Mistrovství Čech mládeže 2023 - HD12"]
[Site "Harrachov, Czech Republic"]
[Date "2023.10.25"]
[Round "6.1"]
[White "Zika, Miroslav"]
[Black "Zrůst, Lukáš"]
[Result "1/2-1/2"]
[TimeControl "90m + 30s"]
[WhiteElo "1199"]
[BlackElo "1685"]

1. c4 {[%clk 01:30:59]} e5 {[%clk 01:30:34]} {[%emt 00:00:26]} 2. Nc3 {[%clk
01:31:21]} {[%emt 00:00:09]} Nc6 {[%clk 01:30:56]} {[%emt 00:00:07]} 3. Nf3
{[%clk 01:31:42]} {[%emt 00:00:09]} g6 {[%clk 01:31:18]} {[%emt 00:00:07]} 4.
d3 {[%clk 01:31:12]} {[%emt 00:01:01]} Bg7 {[%clk 01:31:36]} {[%emt 00:00:11]}
5. g3 {[%clk 01:31:30]} {[%emt 00:00:13]} Nge7 {[%clk 01:31:51]} {[%emt
00:00:15]} 6. Bg2 {[%clk 01:31:16]} {[%emt 00:00:44]} O-O {[%clk 01:32:06]}
{[%emt 00:00:14]} 7. O-O {[%clk 01:31:05]} {[%emt 00:00:42]} d6 {[%clk
01:32:25]} {[%emt 00:00:11]} 8. Bd2 {[%clk 01:30:35]} {[%emt 00:01:00]} h6
{[%clk 01:32:45]} {[%emt 00:00:10]} 9. a3 {[%clk 01:29:52]} {[%emt 00:01:14]}
a5 {[%clk 01:32:47]} {[%emt 00:00:28]} 10. Qc2 {[%clk 01:29:47]} {[%emt
00:00:35]} Be6 {[%clk 01:32:12]} {[%emt 00:01:04]} 11. Rab1 {[%clk 01:18:55]}
{[%emt 00:11:23]} Qd7 {[%clk 01:31:51]} {[%emt 00:00:50]} 12. b4 {[%clk
01:18:48]} {[%emt 00:00:37]} axb4 {[%clk 01:32:10]} {[%emt 00:00:11]} 13. axb4
{[%clk 01:19:07]} {[%emt 00:00:10]} f5 {[%clk 01:30:35]} {[%emt 00:02:06]} 14.
b5 {[%clk 01:18:11]} {[%emt 00:01:26]} Nd8 {[%clk 01:30:46]} {[%emt 00:00:19]}
15. Rfc1 {[%clk 01:15:53]} {[%emt 00:02:48]} c6 {[%clk 01:29:16]} {[%emt
00:02:01]} 16. Na4 {[%clk 01:14:07]} {[%emt 00:02:15]} Nc8 {[%clk 01:27:06]}
{[%emt 00:02:38]} 17. Nc3 {[%clk 01:11:03]} {[%emt 00:03:36]} g5 {[%clk
01:18:08]} {[%emt 00:09:29]} 18. bxc6 {[%clk 01:10:10]} {[%emt 00:01:23]} bxc6
{[%clk 01:17:47]} {[%emt 00:00:50]} 19. Rf1 {[%clk 01:03:38]} {[%emt 00:07:01]}
Nb7 {[%clk 01:13:41]} {[%emt 00:04:37]} 20. Bxg5 {[%clk 00:59:57]} {[%emt
00:04:11]} hxg5 {[%clk 01:10:46]} {[%emt 00:03:25]} 21. Nxg5 {[%clk 01:00:08]}
{[%emt 00:00:18]} Nc5 {[%clk 01:09:48]} {[%emt 00:01:28]} 22. Nxe6 {[%clk
00:58:38]} {[%emt 00:02:00]} Nxe6 {[%clk 01:10:05]} {[%emt 00:00:13]} 23. e3
{[%clk 00:55:49]} {[%emt 00:03:20]} Ne7 {[%clk 01:03:56]} {[%emt 00:06:39]} 24.
Rb6 {[%clk 00:54:36]} {[%emt 00:01:43]} Rfb8 {[%clk 01:01:25]} {[%emt
00:02:59]} 25. Na4 {[%clk 00:49:03]} {[%emt 00:06:05]} Qa7 {[%clk 00:57:35]}
{[%emt 00:04:17]} 26. Rxb8+ {[%clk 00:41:33]} {[%emt 00:08:03]} Rxb8 {[%clk
00:57:21]} {[%emt 00:00:44]} 27. Nc3 {[%clk 00:40:55]} {[%emt 00:01:08]} Rb6
{[%clk 00:50:51]} {[%emt 00:06:59]} 28. Rb1 {[%clk 00:38:57]} {[%emt 00:02:28]}
Qb8 {[%clk 00:50:16]} {[%emt 00:01:06]} 29. h4 {[%clk 00:32:47]} {[%emt
00:06:40]} Rxb1+ {[%clk 00:50:14]} {[%emt 00:00:31]} 30. Nxb1 {[%clk 00:32:53]}
{[%emt 00:00:24]} Nc5 {[%clk 00:49:46]} {[%emt 00:00:59]} 31. Nd2 {[%clk
00:30:14]} {[%emt 00:03:08]} Qa7 {[%clk 00:49:03]} {[%emt 00:01:14]} 32. e4
{[%clk 00:29:23]} {[%emt 00:01:21]} f4 {[%clk 00:44:58]} {[%emt 00:04:35]} 33.
Kh2 {[%clk 00:28:54]} {[%emt 00:00:58]} fxg3+ {[%clk 00:44:59]} {[%emt
00:00:29]} 34. fxg3 {[%clk 00:28:49]} {[%emt 00:00:35]} Qa3 {[%clk 00:44:24]}
{[%emt 00:01:05]} 35. Bf1 {[%clk 00:27:21]} {[%emt 00:01:59]} Qa4 {[%clk
00:42:46]} {[%emt 00:02:08]} 36. Qxa4 {[%clk 00:26:35]} {[%emt 00:01:15]} Nxa4
{[%clk 00:43:12]} {[%emt 00:00:05]} 37. Nb3 {[%clk 00:26:07]} {[%emt 00:00:58]}
c5 {[%clk 00:39:59]} {[%emt 00:03:43]} 38. Kh3 {[%clk 00:24:26]} {[%emt
00:02:10]} Nc6 {[%clk 00:38:05]} {[%emt 00:02:24]} 39. g4 {[%clk 00:24:22]}
{[%emt 00:00:34]} Nb2 {[%clk 00:37:11]} {[%emt 00:01:25]} 40. g5 {[%clk
00:23:13]} {[%emt 00:01:38]} Nb4 {[%clk 00:35:16]} {[%emt 00:02:25]} 41. Nc1
{[%clk 00:21:44]} {[%emt 00:01:59]} Kh7 {[%clk 00:32:36]} {[%emt 00:03:11]} 42.
Kg4 {[%clk 00:20:13]} {[%emt 00:02:00]} Nd1 {[%clk 00:31:40]} {[%emt 00:01:27]}
43. Be2 {[%clk 00:18:49]} {[%emt 00:01:54]} Ne3+ {[%clk 00:30:40]} {[%emt
00:01:29]} 1/2-1/2

[Event "Mistrovství Čech mládeže 2023 - HD12"]
[Site "Harrachov, Czech Republic"]
[Date "2023.10.25"]
[Round "6.2"]
[White "Artamonov, Mikhail"]
[Black "Rendl, Luboš"]
[Result "1-0"]
[TimeControl "90m + 30s"]
[WhiteElo "1458"]
[BlackElo "1420"]

1. d4 {[%clk 01:30:55]} {[%emt 00:00:04]} d5 {[%clk 01:30:44]} {[%emt
00:00:16]} 2. c4 {[%clk 01:31:02]} {[%emt 00:00:24]} c6 {[%clk 01:31:10]}
{[%emt 00:00:04]} 3. Nc3 {[%clk 01:31:06]} {[%emt 00:00:25]} Nf6 {[%clk
01:31:24]} {[%emt 00:00:16]} 4. Bg5 {[%clk 01:31:07]} {[%emt 00:00:30]} Ne4
{[%clk 01:30:03]} {[%emt 00:01:51]} 5. Nxe4 {[%clk 01:29:41]} {[%emt 00:01:56]}
dxe4 {[%clk 01:30:26]} {[%emt 00:00:07]} 6. Qd2 {[%clk 01:28:21]} {[%emt
00:01:50]} h6 {[%clk 01:30:31]} {[%emt 00:00:25]} 7. Bh4 {[%clk 01:27:17]}
{[%emt 00:01:33]} g5 {[%clk 01:30:33]} {[%emt 00:00:29]} 8. Bg3 {[%clk
01:27:39]} {[%emt 00:00:08]} Bg7 {[%clk 01:30:19]} {[%emt 00:00:44]} 9. e3
{[%clk 01:26:08]} {[%emt 00:02:00]} Bf5 {[%clk 01:28:07]} {[%emt 00:02:41]} 10.
Ne2 {[%clk 01:21:25]} {[%emt 00:05:15]} O-O {[%clk 01:25:54]} {[%emt 00:02:42]}
11. Nc3 {[%clk 01:20:06]} {[%emt 00:01:49]} Bg6 {[%clk 01:25:14]} {[%emt
00:01:10]} 12. Be2 {[%clk 01:18:59]} {[%emt 00:01:38]} Qd7 {[%clk 01:24:13]}
{[%emt 00:01:30]} 13. Rd1 {[%clk 01:16:54]} {[%emt 00:02:34]} Na6 {[%clk
01:20:40]} {[%emt 00:04:03]} 14. a3 {[%clk 01:13:56]} {[%emt 00:03:31]} Rad8
{[%clk 01:19:08]} {[%emt 00:02:01]} 15. Qc2 {[%clk 01:07:58]} {[%emt 00:06:28]}
f5 {[%clk 01:16:41]} {[%emt 00:02:56]} 16. f4 {[%clk 01:00:09]} {[%emt
00:08:19]} Nc7 {[%clk 01:00:44]} {[%emt 00:16:27]} 17. d5 {[%clk 00:57:15]}
{[%emt 00:03:25]} Bf7 {[%clk 00:48:20]} {[%emt 00:12:53]} 18. dxc6 {[%clk
00:53:16]} {[%emt 00:04:30]} Qxc6 {[%clk 00:48:05]} {[%emt 00:00:45]} 19. Rxd8
{[%clk 00:50:39]} {[%emt 00:03:07]} Rxd8 {[%clk 00:48:13]} {[%emt 00:00:21]} 20.
b3 {[%clk 00:48:28]} {[%emt 00:02:41]} Qc5 {[%clk 00:45:16]} {[%emt 00:03:26]}
21. Qc1 {[%clk 00:43:54]} {[%emt 00:05:05]} e5 {[%clk 00:41:08]} {[%emt
00:04:39]} 22. fxe5 {[%clk 00:38:05]} {[%emt 00:06:18]} Bxe5 {[%clk 00:41:02]}
{[%emt 00:00:36]} 23. Bxe5 {[%clk 00:38:33]} {[%emt 00:00:02]} Qxe5 {[%clk
00:41:25]} {[%emt 00:00:07]} 24. O-O {[%clk 00:36:56]} {[%emt 00:02:07]} Ne6
{[%clk 00:33:38]} {[%emt 00:08:17]} 25. Nd5 {[%clk 00:36:57]} {[%emt 00:00:30]}
Nc5 {[%clk 00:32:23]} {[%emt 00:01:43]} 26. Rxf5 {[%clk 00:33:24]} {[%emt
00:04:04]} Qd6 {[%clk 00:30:37]} {[%emt 00:02:01]} 27. Qf1 {[%clk 00:22:54]}
{[%emt 00:11:14]} Bxd5 {[%clk 00:27:26]} {[%emt 00:03:42]} 28. Rxd5 {[%clk
00:22:36]} {[%emt 00:00:48]} Qe7 {[%clk 00:27:06]} {[%emt 00:00:49]} 29. Qf5
{[%clk 00:16:23]} {[%emt 00:06:44]} Rxd5 {[%clk 00:26:23]} {[%emt 00:01:14]} 30.
Qxd5+ {[%clk 00:16:51]} {[%emt 00:00:01]} Kg7 {[%clk 00:26:40]} {[%emt
00:00:13]} 31. Qd4+ {[%clk 00:16:31]} {[%emt 00:00:50]} Kg6 {[%clk 00:25:48]}
{[%emt 00:01:19]} 32. b4 {[%clk 00:16:38]} {[%emt 00:00:26]} Nd7 {[%clk
00:24:50]} {[%emt 00:01:11]} 33. Qxa7 {[%clk 00:15:50]} {[%emt 00:01:36]} Ne5
{[%clk 00:24:11]} {[%emt 00:01:08]} 34. Qd4 {[%clk 00:15:13]} {[%emt 00:01:08]}
Nc6 {[%clk 00:21:23]} {[%emt 00:03:17]} 35. Qd5 {[%clk 00:14:51]} {[%emt
00:00:52]} h5 {[%clk 00:20:40]} {[%emt 00:01:12]} 36. Bd1 {[%clk 00:13:28]}
{[%emt 00:01:53]} g4 {[%clk 00:19:40]} {[%emt 00:01:30]} 37. Bc2 {[%clk
00:12:43]} {[%emt 00:01:16]} Kg7 {[%clk 00:17:17]} {[%emt 00:02:49]} 38. Qxe4
{[%clk 00:10:49]} {[%emt 00:02:28]} Qf6 {[%clk 00:17:10]} {[%emt 00:00:32]} 39.
Qh7+ {[%clk 00:09:35]} {[%emt 00:01:49]} Kf8 {[%clk 00:16:52]} {[%emt
00:00:48]} 40. Qf5 {[%clk 00:09:58]} {[%emt 00:00:07]} Qxf5 {[%clk 00:17:17]}
{[%emt 00:00:05]} 41. Bxf5 {[%clk 00:10:10]} {[%emt 00:00:18]} Ne5 {[%clk
00:17:38]} {[%emt 00:00:08]} 42. Be6 {[%clk 00:08:58]} {[%emt 00:01:43]} Ke7
{[%clk 00:17:08]} {[%emt 00:01:01]} 1-0

[Event "Mistrovství Čech mládeže 2023 - HD12"]
[Site "Harrachov, Czech Republic"]
[Date "2023.10.25"]
[Round "6.3"]
[White "Málek, Daniel"]
[Black "Hokr, Matyáš"]
[Result "1-0"]
[TimeControl "90m + 30s"]
[WhiteElo "1404"]
[BlackElo "1352"]

1. e4 {[%clk 01:30:57]} {[%emt 00:00:02]} e6 {[%clk 01:30:47]} {[%emt
00:00:14]} 2. c4 {[%clk 01:26:12]} {[%emt 00:05:14]} c6 {[%clk 01:27:52]}
{[%emt 00:03:11]} 3. Nf3 {[%clk 01:25:28]} {[%emt 00:01:27]} Bc5 {[%clk
01:27:22]} {[%emt 00:01:01]} 4. d4 {[%clk 01:24:58]} {[%emt 00:01:01]} Bb4+
{[%clk 01:27:22]} {[%emt 00:00:30]} 5. Bd2 {[%clk 01:25:08]} {[%emt 00:00:19]}
Bxd2+ {[%clk 01:27:17]} {[%emt 00:00:36]} 6. Nbxd2 {[%clk 01:25:17]} {[%emt
00:00:18]} Ne7 {[%clk 01:27:08]} {[%emt 00:00:42]} 7. Bd3 {[%clk 01:24:36]}
{[%emt 00:01:11]} d5 {[%clk 01:26:57]} {[%emt 00:00:41]} 8. c5 {[%clk
01:23:52]} {[%emt 00:01:13]} Nd7 {[%clk 01:24:58]} {[%emt 00:02:31]} 9. O-O
{[%clk 01:23:24]} {[%emt 00:00:57]} dxe4 {[%clk 01:23:35]} {[%emt 00:01:53]} 10.
Nxe4 {[%clk 01:23:25]} {[%emt 00:00:29]} O-O {[%clk 01:21:03]} {[%emt
00:03:02]} 11. Nd6 {[%clk 01:23:32]} {[%emt 00:00:22]} Nd5 {[%clk 01:16:23]}
{[%emt 00:05:09]} 12. Ne5 {[%clk 01:16:22]} {[%emt 00:07:39]} Nxe5 {[%clk
01:13:49]} {[%emt 00:03:08]} 13. dxe5 {[%clk 01:15:38]} {[%emt 00:01:13]} b6
{[%clk 00:58:40]} {[%emt 00:15:39]} 14. Qa4 {[%clk 00:59:15]} {[%emt 00:16:53]}
Bd7 {[%clk 00:41:26]} {[%emt 00:17:43]} 15. b4 {[%clk 00:59:18]} {[%emt
00:00:23]} f6 {[%clk 00:38:35]} {[%emt 00:03:26]} 16. f4 {[%clk 00:57:41]}
{[%emt 00:02:06]} b5 {[%clk 00:33:57]} {[%emt 00:05:08]} 17. Qb3 {[%clk
00:56:53]} {[%emt 00:01:19]} f5 {[%clk 00:29:23]} {[%emt 00:05:04]} 18. g3
{[%clk 00:54:52]} {[%emt 00:02:30]} g5 {[%clk 00:26:20]} {[%emt 00:03:34]} 19.
a4 {[%clk 00:53:11]} {[%emt 00:02:10]} a5 {[%clk 00:17:55]} {[%emt 00:08:56]}
20. bxa5 {[%clk 00:52:42]} {[%emt 00:00:58]} gxf4 {[%clk 00:12:47]} {[%emt
00:05:38]} 21. axb5 {[%clk 00:50:11]} {[%emt 00:03:02]} fxg3 {[%clk 00:09:11]}
{[%emt 00:04:06]} 22. hxg3 {[%clk 00:49:29]} {[%emt 00:01:11]} Qg5 {[%clk
00:06:56]} {[%emt 00:02:46]} 23. Rf2 {[%clk 00:45:42]} {[%emt 00:04:17]} Qe3
{[%clk 00:05:56]} {[%emt 00:01:30]} 24. b6 {[%clk 00:37:54]} {[%emt 00:08:19]}
Qxc5 {[%clk 00:05:09]} {[%emt 00:01:16]} 25. b7 {[%clk 00:37:58]} {[%emt
00:00:26]} Rab8 {[%clk 00:04:10]} {[%emt 00:01:29]} 26. a6 {[%clk 00:35:04]}
{[%emt 00:03:24]} Qa7 {[%clk 00:04:26]} {[%emt 00:00:14]} 27. Bc4 {[%clk
00:34:23]} {[%emt 00:01:10]} h5 {[%clk 00:03:58]} {[%emt 00:00:59]} 28. Bxd5
{[%clk 00:31:36]} {[%emt 00:03:17]} cxd5 {[%clk 00:03:42]} {[%emt 00:00:46]} 29.
Kg2 {[%clk 00:30:04]} {[%emt 00:02:01]} Kh7 {[%clk 00:02:22]} {[%emt 00:01:50]}
30. Rc2 {[%clk 00:29:31]} {[%emt 00:01:02]} f4 {[%clk 00:01:58]} {[%emt
00:00:56]} 31. Rc7 {[%clk 00:28:21]} {[%emt 00:01:38]} f3+ {[%clk 00:00:49]}
{[%emt 00:01:40]} 32. Kf1 {[%clk 00:28:31]} {[%emt 00:00:20]} Rxb7 {[%clk
00:00:31]} {[%emt 00:00:49]} 33. Rxb7 {[%clk 00:26:58]} {[%emt 00:02:03]} Qd4
{[%clk 00:00:39]} {[%emt 00:00:22]} 34. Rxd7+ {[%clk 00:26:56]} {[%emt
00:00:32]} Kh6 {[%clk 00:00:44]} {[%emt 00:00:26]} 35. Rd1 {[%clk 00:26:13]}
{[%emt 00:01:12]} Qg4 {[%clk 00:00:34]} {[%emt 00:00:40]} 36. Nf7+ {[%clk
00:24:36]} {[%emt 00:02:06]} Rxf7 {[%clk 00:00:45]} {[%emt 00:00:20]} 37. Rxf7
{[%clk 00:24:10]} {[%emt 00:00:56]} Qh3+ {[%clk 00:01:02]} {[%emt 00:00:13]} 38.
Ke1 {[%clk 00:23:45]} {[%emt 00:00:53]} Qxg3+ {[%clk 00:01:21]} {[%emt
00:00:13]} 39. Kd2 {[%clk 00:23:17]} {[%emt 00:00:56]} Qg2+ {[%clk 00:00:54]}
{[%emt 00:00:59]} 40. Kc1 {[%clk 00:22:04]} {[%emt 00:01:43]} Qg5+ {[%clk
00:01:13]} {[%emt 00:00:12]} 41. Kb2 {[%clk 00:22:02]} {[%emt 00:00:31]} Qxe5+
{[%clk 00:01:13]} {[%emt 00:00:30]} 42. Qc3 {[%clk 00:21:02]} {[%emt 00:01:29]}
d4 {[%clk 00:00:31]} {[%emt 00:01:12]} 43. Rxd4 {[%clk 00:20:23]} {[%emt
00:01:08]} Qb5+ {[%clk 00:00:48]} {[%emt 00:00:14]} 44. Kc1 {[%clk 00:19:48]}
{[%emt 00:01:05]} Qxa6 {[%clk 00:00:32]} {[%emt 00:00:47]} 45. Rd1 {[%clk
00:18:10]} {[%emt 00:02:07]} e5 {[%clk 00:00:38]} {[%emt 00:00:25]} 46. Qe3+
{[%clk 00:18:05]} {[%emt 00:00:34]} Kg6 {[%clk 00:00:50]} {[%emt 00:00:19]} 47.
Qd3+ {[%clk 00:18:10]} {[%emt 00:00:25]} Qxd3 {[%clk 00:01:09]} {[%emt
00:00:11]} 48. Rxd3 {[%clk 00:18:27]} {[%emt 00:00:12]} Kxf7 {[%clk 00:01:31]}
{[%emt 00:00:09]} 49. Rxf3+ {[%clk 00:18:47]} {[%emt 00:00:09]} Kg6 {[%clk
00:01:52]} {[%emt 00:00:09]} 50. Kd2 {[%clk 00:18:52]} {[%emt 00:00:26]} Kg5
{[%clk 00:02:16]} {[%emt 00:00:06]} 51. Ke2 {[%clk 00:19:04]} {[%emt 00:00:17]}
h4 {[%clk 00:02:33]} {[%emt 00:00:13]} 52. Kf2 {[%clk 00:19:08]} {[%emt
00:00:25]} Kg6 {[%clk 00:02:16]} {[%emt 00:00:48]} 53. Rh3 {[%clk 00:19:17]}
{[%emt 00:00:21]} Kg5 {[%clk 00:02:34]} {[%emt 00:00:12]} 54. Rh2 {[%clk
00:17:48]} {[%emt 00:01:59]} Kg4 {[%clk 00:02:30]} {[%emt 00:00:34]} 55. Kg2
{[%clk 00:17:58]} {[%emt 00:00:21]} e4 {[%clk 00:02:52]} {[%emt 00:00:08]} 56.
Rh1 {[%clk 00:16:59]} {[%emt 00:01:28]} e3 {[%clk 00:02:50]} {[%emt 00:00:33]}
57. Rh3 {[%clk 00:17:06]} {[%emt 00:00:22]} e2 {[%clk 00:02:38]} {[%emt
00:00:43]} 58. Re3 {[%clk 00:17:33]} {[%emt 00:00:02]} h3+ {[%clk 00:02:56]}
{[%emt 00:00:12]} 59. Kh2 {[%clk 00:16:54]} {[%emt 00:01:08]} Kf4 {[%clk
00:02:41]} {[%emt 00:00:45]} 60. Rxe2 {[%clk 00:17:13]} {[%emt 00:00:13]} Kf3
{[%clk 00:03:02]} {[%emt 00:00:09]} 61. Ra2 {[%clk 00:17:36]} {[%emt 00:00:07]}
Kg4 {[%clk 00:03:07]} {[%emt 00:00:25]} 62. Ra3 {[%clk 00:17:42]} {[%emt
00:00:24]} Kf4 {[%clk 00:03:25]} {[%emt 00:00:12]} 63. Rxh3 {[%clk 00:17:48]}
{[%emt 00:00:24]} Kg4 {[%clk 00:03:32]} {[%emt 00:00:20]} 64. Kg2 {[%clk
00:17:03]} {[%emt 00:01:18]} Kf4 {[%clk 00:03:53]} {[%emt 00:00:09]} 65. Ra3
{[%clk 00:15:46]} {[%emt 00:01:46]} Ke4 {[%clk 00:04:13]} {[%emt 00:00:10]} 66.
Kf2 {[%clk 00:16:15]} {[%emt 00:00:02]} Kd4 {[%clk 00:04:32]} {[%emt 00:00:10]}
67. Ke2 {[%clk 00:16:26]} {[%emt 00:00:19]} Kc4 {[%clk 00:04:55]} {[%emt
00:00:07]} 68. Kd2 {[%clk 00:16:43]} {[%emt 00:00:14]} Kb4 {[%clk 00:05:00]}
{[%emt 00:00:25]} 69. Rh3 {[%clk 00:17:08]} {[%emt 00:00:04]} Kc4 {[%clk
00:05:17]} {[%emt 00:00:14]} 70. Rg3 {[%clk 00:17:23]} {[%emt 00:00:15]} Kb4
{[%clk 00:05:03]} {[%emt 00:00:44]} 71. Rc3 {[%clk 00:17:40]} {[%emt 00:00:12]}
Ka4 {[%clk 00:05:12]} {[%emt 00:00:22]} 72. Kd3 {[%clk 00:17:35]} {[%emt
00:00:34]} Kb4 {[%clk 00:05:35]} {[%emt 00:00:07]} 73. Rc1 {[%clk 00:17:44]}
{[%emt 00:00:21]} Kb5 {[%clk 00:05:58]} {[%emt 00:00:07]} 74. Kd4 {[%clk
00:18:13]} {[%emt 00:00:01]} Kb6 {[%clk 00:06:15]} {[%emt 00:00:13]} 75. Kd5
{[%clk 00:18:25]} {[%emt 00:00:18]} Kb7 {[%clk 00:06:35]} {[%emt 00:00:10]} 76.
Kd6 {[%clk 00:18:48]} {[%emt 00:00:07]} Kb8 {[%clk 00:06:59]} {[%emt 00:00:06]}
77. Kd7 {[%clk 00:19:15]} {[%emt 00:00:03]} Kb7 {[%clk 00:07:17]} {[%emt
00:00:12]} 78. Rb1+ {[%clk 00:19:38]} {[%emt 00:00:08]} Ka6 {[%clk 00:07:43]}
{[%emt 00:00:04]} 79. Kc6 {[%clk 00:19:22]} {[%emt 00:00:45]} Ka5 {[%clk
00:07:58]} {[%emt 00:00:15]} 80. Rb8 {[%clk 00:19:49]} {[%emt 00:00:03]} Ka4
{[%clk 00:08:19]} {[%emt 00:00:10]} 81. Kc5 {[%clk 00:20:05]} {[%emt 00:00:14]}
Ka3 {[%clk 00:08:43]} {[%emt 00:00:05]} 82. Kc4 {[%clk 00:20:29]} {[%emt
00:00:06]} Ka2 {[%clk 00:08:49]} {[%emt 00:00:25]} 83. Kc3 {[%clk 00:20:51]}
{[%emt 00:00:07]} Ka1 {[%clk 00:09:14]} {[%emt 00:00:06]} 84. Kc2 {[%clk
00:21:17]} {[%emt 00:00:04]} Ka2 {[%clk 00:09:36]} {[%emt 00:00:08]} 85. Ra8#
{[%clk 00:21:43]} {[%emt 00:00:03]} 1-0

[Event "Mistrovství Čech mládeže 2023 - HD12"]
[Site "Harrachov, Czech Republic"]
[Date "2023.10.25"]
[Round "6.4"]
[White "Janoušková, Eliška"]
[Black "Trejbal, Jindřich"]
[Result "1/2-1/2"]
[TimeControl "90m + 30s"]
[WhiteElo "1385"]
[BlackElo "1329"]

1. e4 {[%clk 01:30:57]} {[%emt 00:00:02]} c5 {[%clk 01:30:19]} {[%emt
00:00:40]} 2. Nf3 {[%clk 01:29:24]} {[%emt 00:02:03]} Nc6 {[%clk 01:28:58]}
{[%emt 00:01:52]} 3. b3 {[%clk 01:28:25]} {[%emt 00:01:29]} e6 {[%clk
01:27:13]} {[%emt 00:02:15]} 4. Bb2 {[%clk 01:27:43]} {[%emt 00:01:11]} b6
{[%clk 01:24:39]} {[%emt 00:03:06]} 5. d3 {[%clk 01:23:36]} {[%emt 00:04:36]}
Nf6 {[%clk 01:18:54]} {[%emt 00:06:14]} 6. g3 {[%clk 01:21:24]} {[%emt
00:02:43]} Be7 {[%clk 01:17:29]} {[%emt 00:01:54]} 7. Bg2 {[%clk 01:17:58]}
{[%emt 00:03:56]} O-O {[%clk 01:14:03]} {[%emt 00:03:56]} 8. c4 {[%clk
01:13:54]} {[%emt 00:04:34]} Bb7 {[%clk 01:10:44]} {[%emt 00:03:50]} 9. O-O
{[%clk 01:10:21]} {[%emt 00:04:02]} h6 {[%clk 01:06:32]} {[%emt 00:04:42]} 10.
Nc3 {[%clk 01:06:54]} {[%emt 00:03:58]} Rc8 {[%clk 00:58:26]} {[%emt 00:08:36]}
11. Qd2 {[%clk 01:02:11]} {[%emt 00:05:13]} Qc7 {[%clk 00:54:34]} {[%emt
00:04:22]} 12. Nb5 {[%clk 00:57:15]} {[%emt 00:05:25]} Qb8 {[%clk 00:51:09]}
{[%emt 00:03:55]} 13. Rfe1 {[%clk 00:54:59]} {[%emt 00:02:46]} Rcd8 {[%clk
00:45:59]} {[%emt 00:05:41]} 14. d4 {[%clk 00:51:38]} {[%emt 00:03:52]} cxd4
{[%clk 00:40:37]} {[%emt 00:05:50]} 15. Nbxd4 {[%clk 00:48:45]} {[%emt
00:03:23]} Rfe8 {[%clk 00:33:23]} {[%emt 00:07:45]} 16. a3 {[%clk 00:43:55]}
{[%emt 00:05:20]} Bc5 {[%clk 00:30:36]} {[%emt 00:03:17]} 17. b4 {[%clk
00:39:37]} {[%emt 00:04:49]} Nxd4 {[%clk 00:28:20]} {[%emt 00:02:45]} 18. Nxd4
{[%clk 00:39:35]} {[%emt 00:00:32]} Bxd4 {[%clk 00:26:46]} {[%emt 00:02:04]} 19.
Bxd4 {[%clk 00:37:59]} {[%emt 00:02:06]} d5 {[%clk 00:23:36]} {[%emt 00:03:40]}
20. Bxf6 {[%clk 00:35:27]} {[%emt 00:03:02]} gxf6 {[%clk 00:23:44]} {[%emt
00:00:21]} 21. exd5 {[%clk 00:33:12]} {[%emt 00:02:46]} exd5 {[%clk 00:23:49]}
{[%emt 00:00:25]} 22. cxd5 {[%clk 00:27:41]} {[%emt 00:06:01]} Re5 {[%clk
00:21:40]} {[%emt 00:02:39]} 23. Rxe5 {[%clk 00:23:40]} {[%emt 00:04:31]} Qxe5
{[%clk 00:20:58]} {[%emt 00:01:11]} 24. Rd1 {[%clk 00:22:58]} {[%emt 00:01:13]}
Qg5 {[%clk 00:20:04]} {[%emt 00:01:23]} 25. Qd3 {[%clk 00:22:18]} {[%emt
00:01:11]} Rd6 {[%clk 00:18:30]} {[%emt 00:02:02]} 26. Qc4 {[%clk 00:19:43]}
{[%emt 00:03:06]} Qe5 {[%clk 00:16:53]} {[%emt 00:02:07]} 27. Qd3 {[%clk
00:18:22]} {[%emt 00:01:52]} 1/2-1/2